fUSD/lending_fUSD_20250407
["ID","MTS","AMOUNT","RATE_DAILY","PERIOD"]
[357365829,1744021069242,-500.0,0.00054794,120]
[357365830,1744021069270,-641.54,0.00054794,120]
[357365831,1744021069299,-561.88974198,0.00054794,120]
[357365832,1744021069326,-859.88,0.00054794,120]
[357365833,1744021069354,-500.0,0.00054794,120]
[357365834,1744021069381,-500.0,0.00054794,120]
[357365835,1744021069409,-565.55470648,0.00054794,120]
[357365836,1744021069437,-500.0,0.00054794,120]
[357365837,1744021069469,-500.0,0.00054794,120]
[357365838,1744021069495,-500.0,0.00054794,120]
[357365839,1744021069521,-502.58,0.00054794,120]
[357365840,1744021069547,-530.91,0.00054794,120]
[357365841,1744021069574,-528.02762698,0.00054794,120]
[357365842,1744021069606,-500.0,0.00054794,120]
[357365843,1744021069641,-500.0,0.00054794,120]
[357365844,1744021069669,-574.22839318,0.00054794,120]
[357365845,1744021069695,-793.93,0.00054794,120]
[357365846,1744021069724,-500.0,0.00054794,120]
[357365847,1744021069748,-500.0,0.00054794,120]
[357365848,1744021069774,-575.93395305,0.00054794,120]
[357365849,1744021069800,-500.0,0.00054794,120]
[357365850,1744021069826,-500.0,0.00054794,120]
[357365851,1744021069852,-500.0,0.00054794,120]
[357365852,1744021069879,-500.0,0.00054794,120]
[357365853,1744021069909,-500.0,0.00054794,120]
[357365854,1744021069934,-500.0,0.00054794,120]
[357365855,1744021069960,-500.0,0.00054794,120]
[357365856,1744021069991,-1007.19,0.00054794,120]
[357365857,1744021070018,-151.0,0.00054794,120]
[357365858,1744021070045,-151.0,0.00054794,120]
[357365859,1744021070073,-500.0,0.00054794,120]
[357365860,1744021070100,-500.0,0.00054794,120]
[357365861,1744021070130,-500.0,0.00054794,120]
[357365862,1744021070156,-151.0,0.00054794,120]
[357365863,1744021070184,-356.57832,0.00054794,120]
[357365864,1744021070213,-356.57832,0.00054794,120]
[357365865,1744021070243,-151.0,0.00054794,120]
[357365866,1744021070269,-189.323502,0.00054794,120]
[357365867,1744021070296,-1297.45,0.00054794,120]
[357365868,1744021070323,-572.24,0.00054794,120]
[357365869,1744021070349,-151.0,0.00054794,120]
[357365870,1744021070377,-500.0,0.00054794,120]
[357365871,1744021070403,-554.5,0.00054794,120]
[357365872,1744021070428,-500.0,0.00054794,120]
[357365873,1744021070453,-556.72,0.00054794,120]
[357365874,1744021070482,-176.814886,0.00054794,120]
[357365875,1744021070511,-151.0,0.00054794,120]
[357365876,1744021070535,-500.0,0.00054794,120]
[357365877,1744021070561,-500.0,0.00054794,120]
[357365878,1744021070585,-500.0,0.00054794,120]
[357365879,1744021070611,-500.0,0.00054794,120]
[357365880,1744021070637,-501.61,0.00054794,120]
[357365881,1744021070663,-500.0,0.00054794,120]
[357365882,1744021070688,-1000.0,0.00054794,120]
[357365883,1744021070713,-151.0,0.00054794,120]
[357365884,1744021070742,-500.0,0.00054794,120]
[357365885,1744021070767,-500.0,0.00054794,120]
[357365886,1744021070793,-500.0,0.00054794,120]
[357365887,1744021070818,-500.0,0.00054794,120]
[357365888,1744021070843,-990.49,0.00054794,120]
[357365889,1744021070868,-500.0,0.00054794,120]
[357365890,1744021070893,-151.0,0.00054794,120]
[357365891,1744021070919,-500.0,0.00054794,120]
[357365892,1744021070944,-500.0,0.00054794,120]
[357365893,1744021070973,-500.0,0.00054794,120]
[357365894,1744021070998,-151.0,0.00054794,120]
[357365895,1744021071024,-500.0,0.00054794,120]
[357365896,1744021071048,-500.0,0.00054794,120]
[357365897,1744021071073,-886.03,0.00054794,120]
[357365898,1744021071112,-500.0,0.00054794,120]
[357365899,1744021071142,-520.55,0.00054794,120]
[357365900,1744021071171,-1053.69,0.00054794,120]
[357365901,1744021071199,-520.5,0.00054794,120]
[357365902,1744021071233,-500.0,0.00054794,120]
[357365903,1744021071529,-541.79093041,0.00054794,120]
[357365904,1744021071562,-500.0,0.00054794,120]
[357365905,1744021071591,-4116.4877,0.00054794,120]
[357365906,1744021071619,-500.0,0.00054794,120]
[357365907,1744021071646,-500.0,0.00054794,120]
[357365908,1744021071673,-500.0,0.00054794,120]
[357365909,1744021071701,-500.0,0.00054794,60]
[357365910,1744021071731,-500.0,0.00054794,120]
[357365911,1744021071758,-500.0,0.00054794,120]
[357365912,1744021071786,-1020.79,0.00054794,120]
[357365913,1744021071814,-500.0,0.00054794,120]
[357365914,1744021071843,-500.0,0.00054794,120]
[357365915,1744021071871,-500.0,0.00054794,120]
[357365916,1744021071899,-500.0,0.00054794,120]
[357365917,1744021071926,-500.0,0.00054794,120]
[357365918,1744021071954,-500.0,0.00054794,120]
[357365919,1744021071983,-500.0,0.00054794,120]
[357365920,1744021072009,-571.89416024,0.00054794,120]
[357365921,1744021072037,-617.69,0.00054794,120]
[357365922,1744021072064,-500.0,0.00054794,120]
[357365923,1744021072091,-500.0,0.00054794,120]
[357365924,1744021072118,-756.24,0.00054794,120]
[357365925,1744021072152,-500.2654395,0.00054794,120]
[357365926,1744021072183,-622.84,0.00054794,120]
[357365927,1744021072214,-500.0,0.00054794,120]
[357365928,1744021072248,-823.2,0.00054794,120]
[357365929,1744021072276,-500.0,0.00054794,120]
[357365930,1744021072303,-500.0,0.00054794,120]
[357365931,1744021072331,-500.0,0.00054794,120]
[357365932,1744021072356,-500.0,0.00054794,120]
[357365933,1744021072382,-527.65484814,0.00054794,120]
[357365934,1744021072407,-500.0,0.00054794,120]
[357365935,1744021072434,-500.0,0.00054794,120]
[357365936,1744021072459,-398.071568,0.00054794,120]
[357365937,1744021072485,-500.0,0.00054794,120]
[357365938,1744021072510,-500.0,0.00054794,120]
[357365939,1744021072535,-500.0,0.00054794,120]
[357365940,1744021072560,-151.0,0.00054794,120]
[357365941,1744021072585,-500.0,0.00054794,120]
[357365942,1744021072611,-500.0,0.00054794,120]
[357365943,1744021072636,-500.0,0.00054794,120]
[357365944,1744021072662,-500.0,0.00054794,120]
[357365945,1744021072688,-940.7,0.00054794,120]
[357365946,1744021072714,-500.0,0.00054794,120]
[357365947,1744021072743,-497.4267599,0.00054794,120]
[357365948,1744021072768,-500.0,0.00054794,120]
[357365949,1744021072795,-500.0,0.00054794,120]
[357365950,1744021072821,-500.0,0.00054794,120]
[357365951,1744021072847,-500.0,0.00054794,120]
[357365952,1744021072872,-500.0,0.00054794,120]
[357365953,1744021072898,-317.26044995,0.00054794,120]
[357365954,1744021072924,-2820.14,0.00054794,120]
[357365955,1744021072951,-500.0,0.00054794,120]
[357365956,1744021072978,-500.0,0.00054794,120]
[357365957,1744021073007,-540.43,0.00054794,120]
[357365958,1744021073035,-500.0,0.00054794,120]
[357365959,1744021073062,-500.0,0.00054794,120]
[357365960,1744021073090,-500.0,0.00054794,120]
[357365961,1744021073116,-500.0,0.00054794,120]
[357365962,1744021073146,-330.55483876,0.00054794,120]
[357365963,1744021073173,-500.0,0.00054794,120]
[357365964,1744021073201,-500.0,0.00054794,120]
[357365965,1744021073234,-231.37079049,0.00054794,120]
[357365966,1744021073261,-151.0,0.00054794,120]
[357365967,1744021073288,-500.0,0.00054794,120]
[357365968,1744021073317,-500.0,0.00054794,30]
[357365969,1744021073344,-500.0,0.00054794,120]
[357365970,1744021073371,-151.0,0.00054794,120]
[357365971,1744021073398,-746.67,0.00054794,120]
[357365972,1744021073428,-500.0,0.00054794,120]
[357365973,1744021073456,-500.0,0.00054794,120]
[357365974,1744021073485,-202.573701,0.00054794,120]
[357365975,1744021073513,-500.0,0.00054794,120]
[357365976,1744021073540,-500.0,0.00054794,120]
[357365977,1744021073566,-543.63377633,0.00054794,120]
[357365978,1744021073593,-500.0,0.00054794,120]
[357365979,1744021073619,-1443.41,0.00054794,120]
[357365980,1744021073645,-1017.91,0.00054794,120]
[357365981,1744021073671,-500.0,0.00054794,120]
[357365982,1744021073697,-500.0,0.00054794,120]
[357365983,1744021073724,-500.0,0.00054794,120]
[357365984,1744021073750,-500.0,0.00054794,120]
[357365985,1744021073775,-975.08,0.00054794,120]
[357365986,1744021073801,-500.0,0.00054794,120]
[357365987,1744021073827,-1387.98,0.00054794,120]
[357365988,1744021073853,-501.03,0.00054794,120]
[357365989,1744021073879,-500.0,0.00054794,120]
[357365990,1744021073905,-1174.6,0.00054794,120]
[357365991,1744021073931,-778.52,0.00054794,120]
[357365992,1744021073957,-500.0,0.00054794,120]
[357365993,1744021073984,-521.28,0.00054794,120]
[357365994,1744021074010,-500.0,0.00054794,120]
[357365995,1744021074040,-500.0,0.00054794,120]
[357365996,1744021074066,-839.69,0.00054794,30]
[357365997,1744021074092,-151.0,0.00054794,120]
[357365998,1744021074324,-654.08,0.00054794,120]
[357365999,1744021074352,-208.00133344,0.00054794,120]
[357366000,1744021074379,-190.335171,0.00054794,120]
[357366001,1744021074405,-626.09324,0.00054794,98]
[357366002,1744021074430,-500.0,0.00054794,120]
[357366003,1744021074456,-500.0,0.00054794,120]
[357366004,1744021074483,-500.0,0.00054794,120]
[357366005,1744021074508,-571.29078618,0.00054794,120]
[357366006,1744021074533,-500.0,0.00054794,120]
[357366007,1744021074559,-500.0,0.00054794,120]
[357366008,1744021074586,-500.0,0.00054794,120]
[357366009,1744021074612,-501.07,0.00054794,120]
[357366010,1744021074638,-500.0,0.00054794,120]
[357366011,1744021074664,-719.92,0.00054794,120]
[357366012,1744021074690,-500.0,0.00054794,120]
[357366013,1744021074716,-500.0,0.00054794,120]
[357366014,1744021074746,-925.51,0.00054794,120]
[357366015,1744021074772,-500.0,0.00054794,120]
[357366016,1744021074801,-1325.3,0.00054794,120]
[357366017,1744021074828,-577.2,0.00054794,120]
[357366018,1744021074854,-500.0,0.00054794,120]
[357366019,1744021074881,-1258.11,0.00054794,120]
[357366020,1744021074908,-577.05,0.00054794,120]
[357366021,1744021074933,-563.74749216,0.00054794,120]
[357366022,1744021074959,-500.0,0.00054794,120]
[357366023,1744021074988,-506.48981905,0.00054794,120]
[357366024,1744021075014,-560.94,0.00054794,120]
[357366025,1744021075042,-500.0,0.00054794,120]
[357366026,1744021075070,-1781.79,0.00054794,100]
[357366027,1744021075096,-500.0,0.00054794,120]
[357366028,1744021075124,-4613.13,0.00054794,120]
[357366029,1744021075154,-1100.01,0.00054794,120]
[357366030,1744021075182,-500.0,0.00054794,120]
[357366031,1744021075212,-500.0,0.00054794,120]
[357366032,1744021075247,-500.0,0.00054794,120]
[357366033,1744021075275,-487.06985936,0.00054794,120]
[357366034,1744021075302,-500.0,0.00054794,120]
[357366035,1744021075330,-500.0,0.00054794,120]
[357366036,1744021075357,-529.77773358,0.00054794,120]
[357366037,1744021075385,-1608.07,0.00054794,120]
[357366038,1744021075411,-500.0,0.00054794,120]
[357366039,1744021075437,-529.75704048,0.00054794,120]
[357366040,1744021075464,-591.42,0.00054794,120]
[357366041,1744021075494,-536.08164843,0.00054794,120]
[357366042,1744021075521,-500.0,0.00054794,120]
[357366043,1744021075549,-1073.31,0.00054794,120]
[357366044,1744021075589,-597.57,0.00054794,120]
[357366045,1744021075638,-500.0,0.00054794,120]
[357366046,1744021075686,-500.0,0.00054794,120]
[357366047,1744021075740,-892.51,0.00054794,120]
[357366048,1744021075788,-500.0,0.00054794,120]
[357366049,1744021075833,-500.0,0.00054794,120]
[357366050,1744021075878,-500.0,0.00054794,120]
[357366051,1744021075920,-500.0,0.00054794,120]
[357366052,1744021075962,-652.46,0.00054794,120]
[357366053,1744021076006,-256.13155336,0.00054794,120]
[357366054,1744021076047,-500.0,0.00054794,120]
[357366055,1744021076087,-500.0,0.00054794,120]
[357366056,1744021076138,-500.0,0.00054794,120]
[357366057,1744021076182,-500.0,0.00054794,120]
[357366058,1744021076227,-667.16,0.00054794,120]
[357366059,1744021076271,-1447.88,0.00054794,120]
[357366060,1744021076316,-500.0,0.00054794,120]
[357366061,1744021076360,-2508.93,0.00054794,120]
[357366062,1744021076404,-500.0,0.00054794,120]
[357366063,1744021076447,-1033.91,0.00054794,120]
[357366064,1744021076492,-500.0,0.00054794,120]
[357366065,1744021076533,-1519.64,0.00054794,120]
[357366066,1744021076576,-500.0,0.00054794,120]
[357366067,1744021076617,-500.0,0.00054794,120]
[357366068,1744021076659,-500.0,0.00054794,120]
[357366069,1744021076703,-500.0,0.00054794,120]
[357366070,1744021076747,-500.0,0.00054794,120]
[357366071,1744021076789,-500.0,0.00054794,120]
[357366072,1744021076831,-508.51564667,0.00054794,120]
[357366073,1744021076873,-500.0,0.00054794,120]
[357366074,1744021076915,-1233.75,0.00054794,120]
[357366075,1744021076956,-1933.85,0.00054794,120]
[357366076,1744021077000,-549.90740687,0.00054794,120]
[357366077,1744021077043,-4936.04,0.00054794,120]
[357366078,1744021077085,-614.77,0.00054794,120]
[357366079,1744021077129,-1068.89,0.00054794,120]
[357366080,1744021077171,-164.322097,0.00054794,120]
[357366081,1744021077213,-500.0,0.00054794,120]
[357366082,1744021077257,-646.89,0.00054794,120]
[357366083,1744021077301,-500.0,0.00054794,120]
[357366084,1744021077344,-500.0,0.00054794,120]
[357366085,1744021077387,-500.0,0.00054794,120]
[357366086,1744021077429,-834.45,0.00054794,120]
[357366087,1744021077470,-500.0,0.00054794,120]
[357366088,1744021077516,-1732.78,0.00054794,120]
[357366089,1744021077555,-500.0,0.00054794,120]
[357366090,1744021077594,-500.0,0.00054794,120]
[357366091,1744021077973,-500.0,0.00054794,120]
[357366092,1744021078006,-686.31,0.00054794,120]
[357366093,1744021078033,-809.41,0.00054794,120]
[357366094,1744021078060,-868.93,0.00054794,120]
[357366095,1744021078088,-529.53,0.00054794,120]
[357366096,1744021078115,-500.0,0.00054794,120]
[357366097,1744021078145,-2093.1,0.00054794,120]
[357366098,1744021078172,-500.0,0.00054794,120]
[357366099,1744021078199,-500.0,0.00054794,120]
[357366100,1744021078230,-541.20879962,0.00054794,120]
[357366101,1744021078259,-514.58060865,0.00054794,120]
[357366102,1744021078286,-500.0,0.00054794,120]
[357366103,1744021078315,-703.03,0.00054794,120]
[357366104,1744021078342,-868.85,0.00054794,120]
[357366105,1744021078371,-613.78,0.00054794,120]
[357366106,1744021078400,-500.0,0.00054794,120]
[357366107,1744021078428,-500.0,0.00054794,120]
[357366108,1744021078458,-511.17,0.00054794,120]
[357366109,1744021078491,-548.38,0.00054794,120]
[357366110,1744021078522,-500.0,0.00054794,120]
[357366111,1744021078552,-529.50264027,0.00054794,120]
[357366112,1744021078580,-1927.85,0.00054794,120]
[357366113,1744021078607,-500.0,0.00054794,120]
[357366114,1744021078634,-814.82,0.00054794,120]
[357366115,1744021078660,-500.0,0.00054794,120]
[357366116,1744021078685,-500.0,0.00054794,120]
[357366117,1744021078711,-9353.11,0.00054794,120]
[357366118,1744021078737,-500.0,0.00054794,120]
[357366119,1744021078766,-637.18,0.00054794,120]
[357366120,1744021078791,-500.0,0.00054794,120]
[357366121,1744021078816,-500.0,0.00054794,120]
[357366122,1744021078842,-578.07,0.00054794,120]
[357366123,1744021078868,-553.39,0.00054794,120]
[357366124,1744021078894,-500.0,0.00054794,120]
[357366125,1744021078920,-938.08,0.00054794,120]
[357366126,1744021078946,-500.0,0.00054794,120]
[357366127,1744021078971,-500.0,0.00054794,120]
[357366128,1744021078998,-500.0,0.00054794,120]
[357366129,1744021079023,-500.0,0.00054794,120]
[357366130,1744021079051,-500.0,0.00054794,120]
[357366131,1744021079077,-500.0,0.00054794,120]
[357366132,1744021079104,-685.79,0.00054794,120]
[357366133,1744021079131,-500.0,0.00054794,120]
[357366134,1744021079156,-500.0,0.00054794,120]
[357366135,1744021079185,-500.0,0.00054794,120]
[357366136,1744021079215,-500.0,0.00054794,120]
[357366137,1744021079244,-500.0,0.00054794,120]
[357366138,1744021079271,-500.0,0.00054794,120]
[357366139,1744021079300,-500.0,0.00054794,120]
[357366140,1744021079325,-500.0,0.00054794,120]
[357366141,1744021079350,-500.0,0.00054794,120]
[357366142,1744021079376,-565.93,0.00054794,120]
[357366143,1744021079403,-500.0,0.00054794,120]
[357366144,1744021079430,-570.66,0.00054794,120]
[357366145,1744021079457,-500.0,0.00054794,120]
[357366146,1744021079488,-500.0,0.00054794,120]
[357366147,1744021079517,-789.1,0.00054794,120]
[357366148,1744021079544,-500.0,0.00054794,120]
[357366149,1744021079573,-500.0,0.00054794,120]
[357366150,1744021079602,-500.0,0.00054794,120]
[357366151,1744021079635,-585.99,0.00054794,120]
[357366152,1744021079663,-156.701078,0.00054794,120]
[357366153,1744021079689,-500.0,0.00054794,120]
[357366154,1744021079716,-500.0,0.00054794,120]
[357366155,1744021079747,-762.82,0.00054794,120]
[357366156,1744021079774,-500.0,0.00054794,120]
[357366157,1744021079801,-500.0,0.00054794,120]
[357366158,1744021079829,-549.11890652,0.00054794,120]
[357366159,1744021079857,-1000.0,0.00054794,120]
[357366160,1744021079885,-1000.0,0.00054794,120]
[357366161,1744021079913,-1558.87,0.00054794,120]
[357366162,1744021079942,-1000.0,0.00054794,120]
[357366163,1744021079967,-1000.0,0.00054794,120]
[357366164,1744021079997,-1000.0,0.00054794,120]
[357366165,1744021080025,-201.20805054,0.00054794,120]
[357366166,1744021080053,-1363.75,0.00054794,120]
[357366167,1744021080080,-624.74626322,0.00054794,120]
[357366168,1744021080109,-1339.14,0.00054794,120]
[357366169,1744021080136,-500.0,0.00054794,120]
[357366170,1744021080163,-500.0,0.00054794,120]
[357366171,1744021080192,-523.0,0.00054794,120]
[357366172,1744021080221,-500.0,0.00054794,120]
[357366173,1744021080253,-1786.21,0.00054794,120]
[357366174,1744021080281,-500.0,0.00054794,120]
[357366175,1744021080308,-500.0,0.00054794,120]
[357366176,1744021080334,-503.65737845,0.00054794,120]
[357366177,1744021080361,-500.0,0.00054794,120]
[357366178,1744021080387,-500.0,0.00054794,120]
[357366179,1744021080413,-743.95,0.00054794,120]
[357366180,1744021080440,-500.0,0.00054794,120]
[357366181,1744021080466,-500.0,0.00054794,120]
[357366182,1744021080494,-500.0,0.00054794,120]
[357366183,1744021080519,-502.97,0.00054794,120]
[357366184,1744021080724,-500.0,0.00054794,120]
[357366185,1744021080751,-500.0,0.00054794,120]
[357366186,1744021080776,-530.08702241,0.00054794,120]
[357366187,1744021080802,-500.0,0.00054794,120]
[357366188,1744021080831,-1029.49,0.00054794,120]
[357366189,1744021080857,-1440.6,0.00054794,120]
[357366190,1744021080883,-835.36,0.00054794,120]
[357366191,1744021080908,-500.0,0.00054794,120]
[357366192,1744021080933,-500.0,0.00054794,120]
[357366193,1744021080959,-1330.59,0.00054794,120]
[357366194,1744021080988,-847.23,0.00054794,120]
[357366195,1744021081014,-500.0,0.00054794,120]
[357366196,1744021081040,-500.0,0.00054794,120]
[357366197,1744021081066,-614.35,0.00054794,120]
[357366198,1744021081092,-538.25548873,0.00054794,120]
[357366199,1744021081118,-500.0,0.00054794,120]
[357366200,1744021081146,-1853.66,0.00054794,120]
[357366201,1744021081173,-500.0,0.00054794,120]
[357366202,1744021081199,-500.0,0.00054794,120]
[357366203,1744021081226,-500.0,0.00054794,120]
[357366204,1744021081257,-650.47,0.00054794,120]
[357366205,1744021081284,-500.0,0.00054794,120]
[357366206,1744021081310,-509.15,0.00054794,120]
[357366207,1744021081336,-879.67,0.00054794,120]
[357366208,1744021081363,-1384.21,0.00054794,120]
[357366209,1744021081389,-500.0,0.00054794,120]
[357366210,1744021081415,-500.0,0.00054794,120]
[357366211,1744021081440,-500.0,0.00054794,120]
[357366212,1744021081466,-500.0,0.00054794,120]
[357366213,1744021081494,-650.5,0.00054794,120]
[357366214,1744021081520,-500.0,0.00054794,120]
[357366215,1744021081545,-500.0,0.00054794,120]
[357366216,1744021081570,-500.0,0.00054794,120]
[357366217,1744021081596,-762.9,0.00054794,120]
[357366218,1744021081621,-500.0,0.00054794,120]
[357366219,1744021081646,-500.0,0.00054794,120]
[357366220,1744021081671,-500.0,0.00054794,120]
[357366221,1744021081696,-500.0,0.00054794,120]
[357366222,1744021081721,-500.0,0.00054794,120]
[357366223,1744021081751,-773.91,0.00054794,120]
[357366224,1744021081777,-642.8,0.00054794,120]
[357366225,1744021081803,-696.06,0.00054794,120]
[357366226,1744021081828,-690.21,0.00054794,120]
[357366227,1744021081854,-519.71,0.00054794,120]
[357366228,1744021081880,-500.0,0.00054794,120]
[357366229,1744021081907,-500.0,0.00054794,120]
[357366230,1744021081932,-500.0,0.00054794,120]
[357366231,1744021081958,-500.0,0.00054794,120]
[357366232,1744021081984,-520.68,0.00054794,120]
[357366233,1744021082010,-500.0,0.00054794,120]
[357366234,1744021082036,-500.0,0.00054794,120]
[357366235,1744021082062,-800.07,0.00054794,120]
[357366236,1744021082087,-500.0,0.00054794,120]
[357366237,1744021082113,-548.16,0.00054794,120]
[357366238,1744021082143,-649.55,0.00054794,120]
[357366239,1744021082171,-1845.36,0.00054794,120]
[357366240,1744021082198,-1845.36,0.00054794,120]
[357366241,1744021082228,-1845.36,0.00054794,120]
[357366242,1744021082260,-500.0,0.00054794,30]
[357366243,1744021082288,-699.46,0.00054794,120]
[357366244,1744021082317,-1845.36,0.00054794,120]
[357366245,1744021082345,-1845.36,0.00054794,120]
[357366246,1744021082374,-1845.36,0.00054794,120]
[357366247,1744021082400,-1845.36,0.00054794,120]
[357366248,1744021082427,-1845.36,0.00054794,120]
[357366249,1744021082455,-1845.36,0.00054794,120]
[357366250,1744021082486,-1845.36,0.00054794,120]
[357366251,1744021082511,-771.25,0.00054794,30]
[357366252,1744021082537,-1845.36,0.00054794,120]
[357366253,1744021082563,-500.0,0.00054794,120]
[357366254,1744021082589,-1845.36,0.00054794,120]
[357366255,1744021082615,-500.0,0.00054794,120]
[357366256,1744021082642,-1845.36,0.00054794,120]
[357366257,1744021082668,-973.7,0.00054794,120]
[357366258,1744021082693,-500.0,0.00054794,120]
[357366259,1744021082719,-1625.75,0.00054794,120]
[357366260,1744021082749,-685.86,0.00054794,120]
[357366261,1744021082776,-500.0,0.00054794,120]
[357366262,1744021082802,-500.0,0.00054794,120]
[357366263,1744021082829,-690.75,0.00054794,120]
[357366264,1744021082855,-1067.6,0.00054794,120]
[357366265,1744021082881,-1334.19,0.00054794,120]
[357366266,1744021082907,-500.0,0.00054794,120]
[357366267,1744021082932,-661.39,0.00054794,120]
[357366268,1744021082959,-502.44019349,0.00054794,120]
[357366269,1744021082989,-500.0,0.00054794,120]
[357366270,1744021083016,-500.0,0.00054794,120]
[357366271,1744021083044,-619.51,0.00054794,120]
[357366272,1744021083072,-563.24,0.00054794,120]
[357366273,1744021083101,-530.08,0.00054794,120]
[357366274,1744021083135,-500.0,0.00054794,120]
[357366275,1744021083168,-1058.97,0.00054794,120]
[357366276,1744021083198,-525.2,0.00054794,120]
[357366277,1744021083226,-500.0,0.00054794,120]
[357366278,1744021083262,-1701.55,0.00054794,120]
[357366279,1744021083291,-1074.53,0.00054794,120]
[357366280,1744021083540,-177.81721765,0.00054794,120]
[357366281,1744021083572,-500.0,0.00054794,120]
[357366282,1744021083604,-500.0,0.00054794,120]
[357366283,1744021083634,-500.0,0.00054794,120]
[357366284,1744021083666,-336.09792382,0.00054794,120]
[357366285,1744021083703,-500.0,0.00054794,120]
[357366286,1744021083743,-553.29,0.00054794,120]
[357366287,1744021083777,-500.0,0.00054794,120]
[357366288,1744021083809,-2129.46,0.00054794,120]
[357366289,1744021083842,-918.56,0.00054794,120]
[357366290,1744021083876,-500.0,0.00054794,120]
[357366291,1744021083907,-500.0,0.00054794,120]
[357366292,1744021083937,-191.0528429,0.00054794,120]
[357366293,1744021083969,-500.0,0.00054794,120]
[357366294,1744021084002,-508.46863892,0.00054794,120]
[357366295,1744021084034,-500.0,0.00054794,120]
[357366296,1744021084065,-1058.44,0.00054794,120]
[357366297,1744021084096,-500.0,0.00054794,120]
[357366298,1744021084129,-500.0,0.00054794,120]
[357366299,1744021084167,-500.0,0.00054794,120]
[357366300,1744021084203,-524.01,0.00054794,120]
[357366301,1744021084242,-1123.58,0.00054794,120]
[357366302,1744021084276,-500.0,0.00054794,120]
[357366303,1744021084311,-553.15,0.00054794,120]
[357366304,1744021084348,-1831.2,0.00054794,120]
[357366305,1744021084383,-500.0,0.00054794,120]
[357366306,1744021084418,-500.0,0.00054794,120]
[357366307,1744021084452,-680.44,0.00054794,120]
[357366308,1744021084489,-500.0,0.00054794,120]
[357366309,1744021084523,-500.0,0.00054794,120]
[357366310,1744021084556,-500.0,0.00054794,120]
[357366311,1744021084588,-500.0,0.00054794,120]
[357366312,1744021084618,-500.0,0.00054794,120]
[357366313,1744021084648,-861.19,0.00054794,120]
[357366314,1744021084677,-500.0,0.00054794,120]
[357366315,1744021084707,-625.72,0.00054794,120]
[357366316,1744021084740,-616.47,0.00054794,120]
[357366317,1744021084772,-746.91,0.00054794,120]
[357366318,1744021084803,-1045.34,0.00054794,120]
[357366319,1744021084832,-500.0,0.00054794,120]
[357366320,1744021084863,-500.0,0.00054794,120]
[357366321,1744021084893,-645.61,0.00054794,120]
[357366322,1744021084923,-620.58,0.00054794,120]
[357366323,1744021084954,-500.0,0.00054794,120]
[357366324,1744021084988,-500.0,0.00054794,120]
[357366325,1744021085020,-2289.67,0.00054794,120]
[357366326,1744021085049,-527.40549102,0.00054794,120]
[357366327,1744021085079,-500.0,0.00054794,120]
[357366328,1744021085109,-500.0,0.00054794,120]